bitfinex-derivatives/quotes_BNBF0:USTF0_20250529
["timestamp","ask_amount","ask_price","bid_price","bid_amount"]
[1748512390108,0.89860857,688.94,687.8,0.2907822]
[1748512390426,1.0599237,688.95,687.8,0.2907822]
[1748512390614,0.8986106,688.94,687.8,0.2907822]
[1748512390813,0.89861191,688.93,687.8,0.2907822]
[1748512391111,0.89861191,688.92,687.8,0.2907822]
[1748512391312,1.0599237,688.95,687.8,0.2907822]
[1748512391510,1.0598961,688.94,687.8,0.2907822]
[1748512391707,0.89848862,688.93,687.8,0.2907822]
[1748512392011,1.95838472,688.94,687.8,0.2907822]
[1748512392208,3.01830842,688.95,687.83,0.45876201]
[1748512392414,3.01830842,688.95,687.94,0.45876201]
[1748512392612,3.01830842,688.95,687.85,0.45876201]
[1748512392613,1.0599237,688.95,687.85,0.45876201]
[1748512392809,1.95830268,688.95,687.85,0.45876201]
[1748512393010,1.0599237,688.95,687.84,0.45876201]
[1748512393520,1.95830472,688.95,687.84,0.45876201]
[1748512393717,2.1196944,688.95,687.84,0.45876201]
[1748512393914,1.95830472,688.95,687.84,0.45876201]
[1748512394116,1.95830472,688.95,687.82,0.45876201]
[1748512394316,1.0599237,688.95,687.82,0.45876201]
[1748512395016,1.35022052,688.95,687.82,0.45876201]
[1748512395216,1.35022052,688.95,687.86,0.45876201]
[1748512395515,1.35022052,688.95,687.8,0.2907822]
[1748512395516,0.29030104,688.94,687.83,0.45876201]
[1748512395715,0.29030104,688.94,687.88,0.45876201]
[1748512395918,0.29030104,688.94,687.84,0.45876201]
[1748512396211,0.29030104,688.94,687.8,0.2907822]
[1748512396616,1.349912,688.94,687.8,0.2907822]
[1748512396815,0.29030104,688.94,687.8,0.2907822]
[1748512397012,1.95860347,688.93,687.8,0.2907822]
[1748512397212,2.24984981,688.92,687.8,0.2907822]
[1748512397513,2.24985403,688.91,687.8,0.2907822]
[1748512397713,1.95954035,688.9,687.8,0.2907822]
[1748512398013,1.95954035,688.89,687.8,0.2907822]
[1748512398218,0.29031368,688.91,687.8,0.2907822]
[1748512398418,1.95936558,688.9,687.8,0.2907822]
[1748512398617,0.89891593,688.89,687.8,0.2907822]
[1748512398916,1.06044992,688.9,687.8,0.2907822]
[1748512399112,0.29031368,688.91,687.8,0.2907822]
[1748512399319,1.95934165,688.9,687.8,0.2907822]
[1748512399521,0.89886628,688.89,687.8,0.2907822]
[1748512399820,0.89887146,688.88,687.8,0.2907822]
[1748512400020,1.06042732,688.9,687.8,0.2907822]
[1748512400217,0.89884973,688.89,687.8,0.2907822]
[1748512400413,1.06040283,688.9,687.8,0.2907822]
[1748512400614,0.8988497,688.89,687.8,0.2907822]
[1748512400824,0.29031368,688.91,687.8,0.2907822]
[1748512401218,0.89884693,688.9,687.8,0.2907822]
[1748512401414,0.29031368,688.91,687.8,0.2907822]
[1748512401815,1.06040012,688.9,687.8,0.2907822]
[1748512402116,0.29031368,688.91,687.8,0.2907822]
[1748512402838,1.06040274,688.9,687.8,0.2907822]
[1748512403014,0.89884964,688.89,687.8,0.2907822]
[1748512403319,1.06039011,688.9,687.8,0.2907822]
[1748512403515,0.89883939,688.89,687.8,0.2907822]
[1748512403720,0.29031368,688.91,687.8,0.2907822]
[1748512404414,1.95923065,688.9,687.8,0.2907822]
[1748512404618,0.89883914,688.89,687.8,0.2907822]
[1748512404820,1.06039151,688.9,687.8,0.2907822]
[1748512405024,0.89884021,688.89,687.8,0.2907822]
[1748512405316,1.06041336,688.9,687.8,0.2907822]
[1748512405520,0.29031368,688.91,687.8,0.2907822]
[1748512405816,1.95903734,688.9,687.8,0.2907822]
[1748512406119,0.89862518,688.89,687.83,0.45876201]
[1748512406315,1.06041131,688.9,687.83,0.45876201]
[1748512406520,0.89862404,688.89,687.84,0.45876201]
[1748512406716,1.06041048,688.9,687.86,0.45876201]
[1748512406919,1.95904608,688.89,687.86,0.45876201]
[1748512407115,1.95904608,688.89,687.8,0.2907822]
[1748512407116,0.29031368,688.91,687.91,0.45876201]
[1748512407332,1.06041865,688.9,687.88,0.45876201]
[1748512407519,0.29031368,688.91,687.91,0.45876201]
[1748512407819,0.29031368,688.91,687.88,0.45876201]
[1748512408619,0.29031368,688.91,687.89,0.45876201]
[1748512408818,0.29031368,688.91,687.8,0.2907822]
[1748512413634,0.29031368,688.91,688.2,0.45876201]
[1748512414232,0.29031368,688.91,688.21,0.45876201]
[1748512414629,0.29031368,688.91,687.8,0.2907822]
[1748512414630,0.29031368,688.91,688.19,0.45876201]
[1748512415232,0.29031368,688.91,688.18,0.45876201]
[1748512415432,0.29031368,688.91,688.16,0.45876201]
[1748512416032,0.29031368,688.91,688.15,0.45876201]
[1748512416731,0.29031368,688.91,688.03,0.45876201]
[1748512417257,0.29031368,688.91,688.01,0.45876201]
[1748512417729,0.29031368,688.91,688.02,0.45876201]
[1748512418733,0.29031368,688.91,688.0,0.45876201]
[1748512418936,0.29031368,688.91,688.01,0.45876201]
[1748512419430,0.29031368,688.91,688.0,0.45876201]
[1748512419733,0.29031368,688.91,687.96,0.45876201]
[1748512421536,0.29031368,688.91,687.95,0.45876201]
[1748512422537,0.29031368,688.91,687.8,0.2907822]
[1748512422538,0.29031368,688.91,687.96,0.45876201]
[1748512422730,0.29031368,688.91,687.86,0.45876201]
[1748512423130,0.29031368,688.91,687.84,0.45876201]
[1748512423331,0.29031368,688.91,687.85,0.45876201]
[1748512423535,0.29031368,688.91,687.8,0.2907822]
[1748512429236,0.29031368,688.91,687.8,0.74954421]
[1748512429437,0.29031368,688.91,687.83,0.45876201]
[1748512430235,0.29031368,688.91,687.86,0.45876201]
[1748512430435,0.29031368,688.91,687.8,0.2907822]
[1748512432240,1.0599237,688.95,687.8,0.2907822]
[1748512436439,1.0599237,688.95,687.8,0.74954421]
[1748512436640,1.0599237,688.95,687.88,0.45876201]
[1748512436842,1.0599237,688.95,687.89,0.29074415]
[1748512437545,1.0599237,688.95,687.92,0.45876201]
[1748512437746,1.0599237,688.95,687.96,0.45876201]
[1748512438350,1.0599237,688.95,687.89,0.29074415]
[1748512443045,1.0599237,688.95,688.15,0.45876201]
[1748512443446,1.0599237,688.95,688.17,0.45876201]
[1748512444147,1.0599237,688.95,688.18,0.45876201]
[1748512444648,1.0599237,688.95,688.15,0.45876201]
[1748512445550,1.0599237,688.95,688.16,0.45876201]
[1748512445751,1.0599237,688.95,688.17,0.45876201]
[1748512446549,1.0599237,688.95,688.18,0.45876201]
[1748512446749,1.0599237,688.95,688.13,0.45876201]
[1748512447655,1.0599237,688.95,688.15,0.45876201]
[1748512447950,1.0599237,688.95,688.17,0.45876201]
[1748512448151,1.0599237,688.95,688.18,0.45876201]
[1748512448671,1.0599237,688.95,688.19,0.45876201]
[1748512448853,1.0599237,688.95,688.22,0.45876201]
[1748512449551,1.0599237,688.95,688.25,0.45876201]
[1748512449746,1.0599237,688.95,688.22,0.45876201]
[1748512451051,1.0599237,688.95,688.21,0.45876201]
[1748512451750,1.0599237,688.95,688.18,0.45876201]
[1748512452449,1.0599237,688.95,688.17,0.45876201]
[1748512452853,1.0599237,688.95,687.89,0.29074415]
[1748512452854,1.0599237,688.95,688.13,0.45876201]
[1748512453056,1.0599237,688.95,688.15,0.45876201]
[1748512453252,1.0599237,688.95,688.19,0.45876201]
[1748512453655,1.0599237,688.95,688.23,0.45876201]
[1748512453856,1.0599237,688.95,688.02,0.45876201]
[1748512454453,1.0599237,688.95,688.03,0.45876201]
[1748512454656,1.0599237,688.95,688.04,0.45876201]
[1748512455451,1.0599237,688.95,688.05,0.45876201]
[1748512455661,1.0599237,688.95,688.06,0.45876201]
[1748512456557,1.0599237,688.95,688.08,0.45876201]
[1748512456759,1.0599237,688.95,688.01,0.45876201]
[1748512457658,1.0599237,688.95,688.04,0.45876201]
[1748512458459,1.0599237,688.95,688.08,0.45876201]
[1748512459457,1.0599237,688.95,687.89,0.29074415]
[1748512459458,1.0599237,688.95,688.09,0.45876201]
[1748512459761,1.0599237,688.95,688.11,0.45876201]
[1748512460656,1.0599237,688.95,688.17,0.45876201]
[1748512461361,1.0599237,688.95,688.18,0.45876201]
[1748512462359,1.0599237,688.95,688.19,0.45876201]
[1748512462958,1.0599237,688.95,688.2,0.45876201]
[1748512463263,1.0599237,688.95,688.19,0.45876201]
[1748512463464,1.0599237,688.95,688.2,0.45876201]
[1748512463758,1.0599237,688.95,688.32,0.45876201]
[1748512464568,1.0599237,688.95,688.31,0.45876201]
[1748512464961,1.0599237,688.95,688.36,0.45876201]
[1748512466468,1.0599237,688.95,687.89,0.29074415]
[1748512466469,1.0599237,688.95,688.37,0.45876201]
[1748512466669,1.0599237,688.95,688.53,0.45876201]
[1748512467562,1.0599237,688.95,688.54,0.45876201]
[1748512468071,1.0599237,688.95,688.55,0.45876201]
[1748512468465,1.0599237,688.95,688.29,0.45876201]
[1748512468773,1.0599237,688.95,688.28,0.45876201]
[1748512469769,1.0599237,688.95,688.29,0.45876201]
[1748512469972,1.0599237,688.95,688.28,0.45876201]
[1748512470167,1.0599237,688.95,688.24,0.45876201]
[1748512471166,1.0599237,688.95,688.25,0.45876201]
[1748512471867,1.0599237,688.95,688.27,0.45876201]
[1748512472174,1.0599237,688.95,688.32,0.45876201]
[1748512472579,1.0599237,688.95,688.33,0.45876201]
[1748512473172,1.0599237,688.95,688.31,0.45876201]
[1748512473777,1.0599237,688.95,688.29,0.45876201]
[1748512474278,1.0599237,688.95,688.47,0.45876201]
[1748512476276,1.0599237,688.95,688.54,0.45876201]
[1748512478280,1.0599237,688.95,688.59,0.45876201]
[1748512479378,1.0599237,688.95,688.55,0.45876201]
[1748512480184,1.0599237,688.95,688.54,0.45876201]
[1748512482487,1.0599237,688.95,688.41,0.45876201]
[1748512482786,1.0599237,688.95,688.38,0.45876201]
[1748512483485,1.0599237,688.95,687.89,0.29074415]
[1748512483486,1.0599237,688.95,688.39,0.45876201]
[1748512483886,1.0599237,688.95,688.41,0.45876201]
[1748512484187,1.0599237,688.95,688.36,0.45876201]
[1748512484383,1.0599237,688.95,688.35,0.45876201]
[1748512484785,1.0599237,688.95,687.89,0.29074415]
[1748512484786,1.0599237,688.95,688.38,0.45876201]
[1748512485185,1.0599237,688.95,688.37,0.45876201]
[1748512485482,1.0599237,688.95,688.38,0.45876201]
[1748512486483,1.0599237,688.95,688.4,0.45876201]
[1748512486887,0.29030104,688.94,687.52,0.45876201]
[1748512487181,0.29030104,688.94,687.98,0.45876201]
[1748512487182,1.06329448,688.93,687.98,0.45876201]
[1748512487482,0.29030104,688.94,687.98,0.45876201]
[1748512487688,0.29030104,688.94,687.76,0.45876201]
[1748512487887,0.29030946,688.92,687.71,0.45876201]
[1748512488587,0.90456509,688.91,687.63,0.45876201]
[1748512488784,1.19488763,688.9,687.63,0.45876201]
[1748512488984,1.3536211,688.89,687.63,0.45876201]
[1748512489188,0.29032632,688.88,687.62,0.45876201]
[1748512489388,0.90455762,688.87,687.62,0.45876201]
[1748512489589,0.90455762,688.87,687.44,0.25279032]
[1748512489590,0.29033475,688.86,687.56,0.45876201]
[1748512489784,0.29033475,688.86,687.59,0.45876201]
[1748512489785,1.06328729,688.85,687.59,0.45876201]
[1748512489990,0.29034318,688.84,687.44,0.71155233]
[1748512490290,1.0632921,688.83,687.44,0.25279032]
[1748512490485,1.35365352,688.82,687.44,0.25279032]
[1748512490791,0.25285828,688.76,687.44,0.25279032]
[1748512490991,0.29038112,688.75,687.5,0.45876201]
[1748512491187,1.15628832,688.74,687.34,0.45876201]
[1748512491387,0.29038955,688.73,687.34,0.45876201]
[1748512491586,0.29038955,688.73,687.32,0.25287849]
[1748512491991,0.90478044,688.72,687.32,0.25287849]
[1748512492186,1.44661068,688.71,687.32,0.25287849]
[1748512492387,1.19510585,688.7,687.32,0.25287849]
[1748512492586,0.25285828,688.76,687.32,0.25287849]
[1748512492587,0.29040642,688.69,687.32,0.25287849]
[1748512492989,2.06090361,688.68,687.32,0.25287849]
[1748512493287,0.29040642,688.69,687.32,0.25287849]
[1748512493488,1.14645896,688.68,687.32,0.25287849]
[1748512493689,0.29040642,688.69,687.32,0.25287849]
[1748512493991,1.14645791,688.68,687.32,0.25287849]
[1748512494192,0.29040642,688.69,687.32,0.25287849]
[1748512494687,1.14645788,688.68,687.32,0.25287849]
[1748512494891,1.14645823,688.67,687.32,0.25287849]
[1748512495089,0.29040642,688.69,687.32,0.25287849]
[1748512495288,1.14774834,688.68,687.32,0.25287849]
[1748512495584,0.29040642,688.69,687.32,0.25287849]
[1748512496688,1.14774743,688.68,687.32,0.25287849]
[1748512496891,0.29040642,688.69,687.32,0.25287849]
[1748512497691,1.14775009,688.68,687.32,0.25287849]
[1748512497892,1.14774862,688.67,687.32,0.25287849]
[1748512498111,1.14774864,688.66,687.32,0.25287849]
[1748512498292,1.14774809,688.65,687.32,0.25287849]
[1748512498593,1.14774809,688.64,687.32,0.25287849]
[1748512498792,0.29040642,688.69,687.32,0.25287849]
[1748512499398,1.14774923,688.68,687.32,0.25287849]
[1748512499597,0.29040642,688.69,687.32,0.25287849]
[1748512500098,1.14775026,688.68,687.32,0.25287849]
[1748512500294,0.29040642,688.69,687.32,0.25287849]
[1748512501236,1.14775107,688.68,687.32,0.25287849]
[1748512501396,1.14775107,688.67,687.32,0.25287849]
[1748512501698,1.14775107,688.66,687.32,0.25287849]
[1748512501897,0.29040642,688.69,687.32,0.25287849]
[1748512502902,1.14775116,688.68,687.32,0.25287849]
[1748512503095,1.14775116,688.67,687.32,0.25287849]
[1748512503298,1.14775116,688.66,687.32,0.25287849]
[1748512503499,1.14775116,688.65,687.32,0.25287849]
[1748512503693,1.14775116,688.64,687.32,0.25287849]
[1748512503897,0.29040642,688.69,687.32,0.25287849]
[1748512504514,1.14473704,688.68,687.32,0.25287849]
[1748512504695,1.14473704,688.67,687.32,0.25287849]
[1748512504898,1.14473704,688.66,687.32,0.25287849]
[1748512505199,1.14473704,688.65,687.32,0.25287849]
[1748512505399,1.14473704,688.64,687.32,0.25287849]
[1748512505601,0.29040642,688.69,687.32,0.25287849]
[1748512505797,1.14203789,688.68,687.32,0.25287849]
[1748512506096,0.29040642,688.69,687.32,0.25287849]
[1748512506600,1.14207417,688.68,687.32,0.25287849]
[1748512506799,0.29040642,688.69,687.32,0.25287849]
[1748512506999,1.1420694,688.68,687.32,0.25287849]
[1748512507196,0.29040642,688.69,687.32,0.25287849]
[1748512507596,1.14206708,688.68,687.32,0.25287849]
[1748512507797,0.29040642,688.69,687.32,0.25287849]
[1748512508102,1.14206708,688.68,687.32,0.25287849]
[1748512508297,0.29040642,688.69,687.32,0.25287849]
[1748512508498,1.14206083,688.67,687.32,0.25287849]
[1748512508700,0.29040642,688.69,687.32,0.25287849]
[1748512509302,1.1420589,688.68,687.32,0.25287849]
[1748512509500,1.14206009,688.67,687.32,0.25287849]
[1748512509803,0.29040642,688.69,687.32,0.25287849]
[1748512510103,1.14206009,688.68,687.32,0.25287849]
[1748512510403,1.14206009,688.67,687.32,0.25287849]
[1748512510699,1.14206009,688.66,687.33,0.29098104]
[1748512510900,1.14190234,688.65,687.33,0.29098104]
[1748512511100,1.14190234,688.64,687.33,0.29098104]
[1748512511399,1.14190245,688.63,687.33,0.29098104]
[1748512511701,0.29040642,688.69,687.33,0.29098104]
[1748512512299,1.14187942,688.68,687.33,0.29098104]
[1748512512504,1.14187942,688.67,687.33,0.29098104]
[1748512512707,1.14187942,688.66,687.33,0.29098104]
[1748512512906,1.14187942,688.65,687.33,0.29098104]
[1748512513106,0.29040642,688.69,687.33,0.29098104]
[1748512513305,1.1417571,688.68,687.33,0.29098104]
[1748512513505,1.14175713,688.67,687.33,0.29098104]
[1748512513705,0.29040642,688.69,687.33,0.29098104]
[1748512513903,1.14173506,688.68,687.33,0.29098104]
[1748512514108,1.14173506,688.67,687.33,0.29098104]
[1748512514309,1.14173506,688.66,687.33,0.29098104]
[1748512514541,1.14173506,688.65,687.33,0.29098104]
[1748512514710,1.14173506,688.64,687.33,0.29098104]
[1748512514910,1.14176359,688.63,687.33,0.29098104]
[1748512515104,1.14176359,688.62,687.33,0.29098104]
[1748512515306,1.14176359,688.61,687.33,0.29098104]
[1748512515507,1.1418067,688.6,687.33,0.29098104]
[1748512515705,1.14180514,688.59,687.33,0.29098104]
[1748512515909,0.29040642,688.69,687.33,0.29098104]
[1748512516107,1.14180514,688.68,687.33,0.29098104]
[1748512516311,1.14189373,688.67,687.33,0.29098104]
[1748512516508,0.29040642,688.69,687.33,0.29098104]
[1748512516509,1.14189373,688.66,687.33,0.29098104]
[1748512516812,1.14189214,688.65,687.33,0.29098104]
[1748512517012,0.29040642,688.69,687.33,0.29098104]
[1748512517213,1.14187797,688.68,687.33,0.29098104]
[1748512517410,1.14187797,688.67,687.33,0.29098104]
[1748512517777,0.29040642,688.69,687.33,0.29098104]
[1748512517888,1.14201863,688.68,687.33,0.29098104]
[1748512518037,1.14201863,688.67,687.33,0.29098104]
[1748512518215,0.29040642,688.69,687.33,0.29098104]
[1748512518716,1.14218156,688.68,687.33,0.29098104]
[1748512518915,0.29040642,688.69,687.33,0.29098104]
[1748512519315,1.14216252,688.68,687.33,0.29098104]
[1748512519516,0.29040642,688.69,687.33,0.29098104]
[1748512520613,0.29040642,688.69,687.38,0.45876201]
[1748512520811,0.29040642,688.69,687.44,0.45876201]
[1748512521016,0.29040642,688.69,687.45,0.74969225]
[1748512521313,0.29040642,688.69,687.46,0.29092601]
[1748512521612,0.29040642,688.69,687.53,0.45876201]
[1748512521917,0.29040642,688.69,687.52,0.45876201]
[1748512522318,0.29040642,688.69,687.63,0.45876201]
[1748512522519,0.29040642,688.69,687.72,0.45876201]
[1748512522712,0.29040642,688.69,687.46,0.29092601]
[1748512522713,0.29040642,688.69,687.71,0.45876201]
[1748512523517,0.29040642,688.69,687.75,0.45876201]
[1748512524018,0.29040642,688.69,687.97,0.45876201]
[1748512524414,0.29040642,688.69,687.98,0.45876201]
[1748512524614,0.29040642,688.69,687.93,0.45876201]
[1748512525315,0.29040642,688.69,687.92,0.45876201]
[1748512525616,0.29040642,688.69,687.99,0.45876201]
[1748512526520,0.29040642,688.69,687.98,0.45876201]
[1748512526721,0.29040642,688.69,687.99,0.45876201]
[1748512526918,0.29040642,688.69,688.01,0.45876201]
[1748512528124,0.29040642,688.69,688.0,0.45876201]
[1748512528420,0.29040642,688.69,688.02,0.45876201]
[1748512528621,0.29040642,688.69,688.01,0.45876201]
[1748512529325,0.29040642,688.69,688.0,0.45876201]
[1748512530425,0.29040642,688.69,687.92,0.45876201]
[1748512530827,0.29040642,688.69,687.95,0.45876201]
[1748512531226,0.29040642,688.69,687.96,0.45876201]
[1748512531427,0.29040642,688.69,687.89,0.45876201]
[1748512531723,0.29040642,688.69,687.88,0.45876201]
[1748512532122,0.29040642,688.69,687.46,0.29092601]
[1748512532123,0.29040642,688.69,687.85,0.45876201]
[1748512532629,0.29040642,688.69,687.86,0.45876201]
[1748512533032,0.29040642,688.69,687.74,0.45876201]
[1748512533427,0.29040642,688.69,687.75,0.45876201]
[1748512533832,0.29040642,688.69,687.77,0.45876201]
[1748512534230,0.29040642,688.69,687.76,0.45876201]
[1748512534931,0.29040642,688.69,687.77,0.45876201]
[1748512535431,0.29040642,688.69,687.78,0.45876201]
[1748512535925,0.29040642,688.69,687.79,0.45876201]
[1748512536148,0.29040642,688.69,687.63,0.45876201]
[1748512536433,0.29040642,688.69,687.65,0.45876201]
[1748512536634,0.29040642,688.69,687.66,0.45876201]
[1748512537236,0.29040642,688.69,687.63,0.45876201]
[1748512537432,0.29040642,688.69,687.62,0.45876201]
[1748512537734,0.29040642,688.69,687.63,0.45876201]
[1748512538332,0.29040642,688.69,687.61,0.45876201]
[1748512538529,0.29040642,688.69,687.62,0.45876201]
[1748512538934,0.29040642,688.69,687.63,0.45876201]
[1748512539134,0.29040642,688.69,687.62,0.45876201]
[1748512539734,0.29040642,688.69,687.66,0.45876201]
[1748512540530,0.29040642,688.69,687.67,0.45876201]
[1748512541133,0.29040642,688.69,687.66,0.45876201]
[1748512541329,0.29040642,688.69,687.68,0.45876201]
[1748512541531,0.29040642,688.69,687.69,0.45876201]
[1748512541730,0.29040642,688.69,687.63,0.45876201]
[1748512542336,0.29040642,688.69,687.46,0.29092601]
[1748512542337,0.29040642,688.69,687.64,0.45876201]
[1748512542532,0.29040642,688.69,687.72,0.45876201]
[1748512542734,0.29040642,688.69,687.73,0.45876201]
[1748512542931,0.29040642,688.69,687.78,0.45876201]
[1748512543136,0.29040642,688.69,687.77,0.45876201]
[1748512543631,0.29040642,688.69,687.8,0.45876201]
[1748512544631,0.29040642,688.69,687.82,0.45876201]
[1748512545236,0.29040642,688.69,687.46,0.29092601]
[1748512545237,0.29040642,688.69,687.79,0.45876201]
[1748512545633,0.29040642,688.69,687.82,0.45876201]
[1748512545837,0.29040642,688.69,687.86,0.45876201]
[1748512546636,0.29040642,688.69,687.89,0.45876201]
[1748512547739,0.29040642,688.69,687.87,0.45876201]
[1748512548738,0.29040642,688.69,687.84,0.45876201]
[1748512549640,0.29040642,688.69,687.88,0.45876201]
[1748512550641,0.29040642,688.69,687.91,0.45876201]
[1748512551340,0.29040642,688.69,687.96,0.45876201]
[1748512551540,0.29040642,688.69,687.97,0.45876201]
[1748512551743,0.29040642,688.69,688.0,0.45876201]
[1748512551937,0.29040642,688.69,688.01,0.45876201]
[1748512552236,0.29040642,688.69,688.03,0.45876201]
[1748512552836,0.29040642,688.69,688.05,0.45876201]
[1748512553039,0.29040642,688.69,688.06,0.45876201]
[1748512553440,0.29040642,688.69,687.46,0.29092601]
[1748512553441,0.29040642,688.69,688.08,0.45876201]
[1748512554048,0.29040642,688.69,688.09,0.45876201]
[1748512554536,0.29040642,688.69,688.15,0.45876201]
[1748512554841,0.29040642,688.69,688.16,0.45876201]
[1748512555037,0.29040642,688.69,688.06,0.45876201]
[1748512555844,0.29040642,688.69,688.08,0.45876201]
[1748512556041,0.29040642,688.69,687.46,0.29092601]
[1748512556042,0.29040642,688.69,688.1,0.45876201]
[1748512556444,0.29040642,688.69,688.03,0.45876201]
[1748512556739,0.29040642,688.69,688.04,0.45876201]
[1748512556937,0.29040642,688.69,687.46,0.29092601]
[1748512556938,0.29040642,688.69,688.03,0.45876201]
[1748512557339,0.29040642,688.69,688.02,0.45876201]
[1748512557537,0.29040642,688.69,688.03,0.45876201]
[1748512557742,0.29040642,688.69,687.46,0.29092601]
[1748512557743,0.29040642,688.69,687.99,0.45876201]
[1748512557939,0.29040642,688.69,687.95,0.45876201]
[1748512558144,0.29040642,688.69,687.89,0.45876201]
[1748512558639,0.29040642,688.69,687.92,0.45876201]
[1748512558938,0.29040642,688.69,687.87,0.45876201]
[1748512559345,0.29040642,688.69,687.86,0.45876201]
[1748512559545,0.29040642,688.69,687.87,0.45876201]
[1748512559841,0.29040642,688.69,687.92,0.45876201]
[1748512560045,0.29040642,688.69,687.98,0.45876201]
[1748512560441,0.29040642,688.69,687.96,0.45876201]
[1748512560757,0.29040642,688.69,687.46,0.29092601]
[1748512560758,0.29040642,688.69,687.84,0.45876201]
[1748512561245,0.29040642,688.69,687.79,0.45876201]
[1748512561745,0.29040642,688.69,687.8,0.45876201]
[1748512562446,0.29040642,688.69,687.81,0.45876201]
[1748512562745,0.29040642,688.69,687.8,0.45876201]
[1748512562945,0.29040642,688.69,687.82,0.45876201]
[1748512563341,0.29040642,688.69,687.81,0.45876201]
[1748512563543,0.29040642,688.69,687.8,0.45876201]
[1748512563944,0.29040642,688.69,687.75,0.45876201]
[1748512564142,0.29040642,688.69,687.46,0.29092601]
[1748512564143,0.29040642,688.69,687.78,0.45876201]
[1748512564344,0.29040642,688.69,687.76,0.45876201]
[1748512564747,1.15398814,688.68,687.76,0.45876201]
[1748512564947,0.29040642,688.69,687.75,0.45876201]
[1748512565147,1.15399175,688.68,687.75,0.45876201]
[1748512565354,0.29040642,688.69,687.74,0.45876201]
[1748512565550,0.29040642,688.69,687.73,0.45876201]
[1748512565945,1.15482486,688.68,687.69,0.45876201]
[1748512566148,0.29040642,688.69,687.72,0.45876201]
[1748512566452,0.29040642,688.69,687.66,0.45876201]
[1748512566647,0.29040642,688.69,687.58,0.45876201]
[1748512567150,1.15484995,688.68,687.58,0.45876201]
[1748512567345,0.29040642,688.69,687.57,0.45876201]
[1748512567545,2.05382347,688.68,687.57,0.45876201]
[1748512567848,1.1548488,688.67,687.57,0.45876201]
[1748512568048,1.1548488,688.66,687.57,0.45876201]
[1748512568249,0.29040642,688.69,687.56,0.45876201]
[1748512568451,0.29040642,688.69,687.52,0.45876201]
[1748512568847,2.05379874,688.68,687.52,0.45876201]
[1748512569145,0.29040642,688.69,687.52,0.45876201]
[1748512569352,0.89895392,688.68,687.51,0.45876201]
[1748512569550,0.29040642,688.69,687.51,0.45876201]
[1748512570045,0.29040642,688.69,687.49,0.45876201]
[1748512570350,1.1547771,688.68,687.54,0.45876201]
[1748512570547,0.29040642,688.69,687.53,0.45876201]
[1748512570750,1.15477696,688.68,687.53,0.45876201]
[1748512570950,1.15477696,688.67,687.52,0.45876201]
[1748512571148,1.15477696,688.66,687.52,0.45876201]
[1748512571349,1.15477696,688.65,687.52,0.45876201]
[1748512571550,1.15412565,688.64,687.52,0.45876201]
[1748512571754,1.15412508,688.63,687.52,0.45876201]
[1748512571954,0.29040642,688.69,687.52,0.45876201]
[1748512572147,1.15412504,688.68,687.52,0.45876201]
[1748512572350,1.15412504,688.67,687.52,0.45876201]
[1748512572555,1.15412504,688.66,687.54,0.45876201]
[1748512572752,1.15412504,688.65,687.54,0.45876201]
[1748512573051,1.15399148,688.64,687.52,0.45876201]
[1748512573254,1.15399148,688.63,687.52,0.45876201]
[1748512573555,0.29040642,688.69,687.52,0.45876201]
[1748512574155,0.29040642,688.69,687.56,0.45876201]
[1748512574651,1.15379397,688.68,687.56,0.45876201]
[1748512574853,1.15372702,688.67,687.66,0.45876201]
[1748512575154,1.15372702,688.66,687.66,0.45876201]
[1748512575349,1.15372702,688.65,687.67,0.45876201]
[1748512575551,1.15368037,688.64,687.67,0.45876201]
[1748512575752,0.29040642,688.69,687.67,0.45876201]
[1748512575955,1.15367133,688.68,687.67,0.45876201]
[1748512576155,1.1534256,688.67,687.67,0.45876201]
[1748512576349,0.29040642,688.69,687.68,0.45876201]
[1748512576555,0.29040642,688.69,687.65,0.45876201]
[1748512576755,1.15342462,688.68,687.65,0.45876201]
[1748512576961,0.29040642,688.69,687.65,0.45876201]
[1748512577157,1.15342317,688.68,687.7,0.45876201]
[1748512577354,0.29040642,688.69,687.71,0.45876201]
[1748512578358,0.29040642,688.69,687.93,0.45876201]
[1748512578555,0.29040642,688.69,687.95,0.45876201]
[1748512579558,0.29040642,688.69,687.96,0.45876201]
[1748512579961,0.29040642,688.69,687.54,0.45876201]
[1748512579962,0.29040642,688.69,688.06,0.45876201]
[1748512580762,1.15334656,688.68,688.07,0.45876201]
[1748512580961,0.29040642,688.69,688.07,0.45876201]
[1748512581164,1.15331618,688.68,688.07,0.45876201]
[1748512581467,0.29040642,688.69,688.07,0.45876201]
[1748512581662,0.29040642,688.69,687.46,0.29092601]
[1748512581663,0.29040642,688.69,687.92,0.45876201]
[1748512581967,0.29040642,688.69,687.46,0.29092601]
[1748512581968,1.15356406,688.68,687.93,0.45876201]
[1748512582167,0.29040642,688.69,687.93,0.45876201]
[1748512582368,0.29040642,688.69,687.81,0.45876201]
[1748512582567,0.29040642,688.69,687.82,0.45876201]
[1748512583664,0.29040642,688.69,687.48,0.45876201]
[1748512583863,1.15369952,688.68,687.48,0.45876201]
[1748512584163,0.29040642,688.69,687.48,0.45876201]
[1748512584463,1.15369988,688.68,687.47,0.45876201]
[1748512584662,1.15371253,688.67,687.47,0.45876201]
[1748512584868,1.4441316,688.66,687.47,0.45876201]
[1748512585064,0.29042329,688.65,687.46,0.74968802]